[Event "1st Serbian League 2022"]
[Site "Vrnjacka Banja"]
[Date "2022.09.28"]
[Round "9.32"]
[White "Sedlak, Nikola"]
[Black "Damljanovic, Branko"]
[Result "1/2-1/2"]
[WhiteElo "2466"]
[BlackElo "2436"]
[Annotator "TA"]
[PlyCount "32"]
[EventDate "2022.09.20"]
[EventType "team-tourn"]
[EventCountry "SRB"]
[SourceTitle "playchess.com"]
[Source "ChessBase"]
[SourceQuality "1"]
[TimeControl "40/5400+30:1800+30"]

{[%evp 9,19,9,8,-23,20,2,0,0,0,0,0,0]} 1. Nf3 {[%emt 0:00:02]} Nf6 {[%emt 0:00:07]} 2. g3 {[%emt 0:00:07]} b6 {[%emt 0:00:09]} 3. Bg2 {[%emt 0:00:08]} Bb7 {[%emt 0:00:07]} 4. O-O {[%emt 0:00:07]} e6 {[%emt 0:00:04]} 5. d3 {[%emt 0:00:08]} d5 {[%emt 0:00:08]} 6. e4 {[%emt 0:00:07] A05: Réti Opening: 1 Nf3 Nf6.} Be7 {[%emt 0:00:05]} 7. Nc3 {[%emt 0:00:22] The position is equal.} c5 {[%emt 0:00:09]} 8. exd5 {[%emt 0:00:10]} Nxd5 {[%emt 0:00:02]} 9. Bd2 {[%emt 0:00:09]} O-O {[%emt 0:00:07]} 10. Re1 {[%emt 0:00:04] [#] A rather calm draw.  Weighted Error Value: White=0.12 (very precise) /Black=0.11 (very precise)} {Predecessor:} Bf6 $146 11. Ne5 Bxe5 12. Rxe5 Nxc3 13. Bxc3 Bxg2 14. Kxg2 Nc6 15. Re1 Rc8 16. Kg1 Qd5 {0-1 (37) Saraci,N (2171)-Jobava,B (2683) Skopje 2015} 1/2-1/2

[Event "1st Serbian League 2022"]
[Site "Vrnjacka Banja"]
[Date "2022.09.28"]
[Round "9.33"]
[White "Tadic, Branko"]
[Black "Popovic, Dusan"]
[Result "1/2-1/2"]
[ECO "E62"]
[WhiteElo "2455"]
[BlackElo "2486"]
[Annotator "TA"]
[PlyCount "33"]
[EventDate "2022.09.20"]
[EventType "team-tourn"]
[EventCountry "SRB"]
[SourceTitle "playchess.com"]
[Source "ChessBase"]
[SourceQuality "1"]
[TimeControl "40/5400+30:1800+30"]

{[%evp 18,33,35,19,12,14,12,10,12,14,30,9,10,0,0,0,16,0]} 1. Nf3 {[%emt 0:00:51]} Nf6 {[%emt 0:00:29]} 2. g3 {[%emt 0:00:11]} g6 {[%emt 0:00:05]} 3. Bg2 {[%emt 0:00:07]} Bg7 {[%emt 0:00:07]} 4. O-O {[%emt 0:00:29]} O-O {[%emt 0:00:05]} 5. c4 {[%emt 0:00:33]} d6 {[%emt 0:00:18]} 6. d4 {[%emt 0:00:16]} Nc6 {[%emt 0:01:02]} 7. Nc3 {[%emt 0:05:22]} e5 {[%emt 0:04:12]} 8. dxe5 {[%emt 0:03:08]} dxe5 $1 {[%emt 0:01:34] The main line 8...dxe5 scores better than 8...Nxe5.} 9. Bg5 {[%emt 0:00:09]} Be6 {[%emt 0:03:55]} 10. Nd5 {[%emt 0:13:32]} Bxd5 {[%emt 0:07:09] E62: King's Indian: Fianchetto: 6...c6 and Panno Variation (6...Nc6) without ...a6.} 11. Bxf6 {[%emt 0:01:08]} Bxf6 {[%emt 0:01:39]} 12. cxd5 {[%emt 0:00:09]} Ne7 {[%emt 0:01:01]} 13. e4 {[%emt 0:05:37]} c6 {[%emt 0:05:39][%cal Rc6d5]} 14. dxc6 {[%emt 0:03:11]} ({Much less strong is} 14. d6 Nc8 $16) 14... Nxc6 {[%emt 0:00:47] The position is equal.} 15. Qxd8 {[%emt 0:00:12]} Rfxd8 {[%emt 0:00:30]} 16. Rfd1 Kf8 {[%emt 0:00:30] [#]} 17. Rac1 $146 {[%emt 0:01:00] An interesting draw.  Weighted Error Value: White=0.08 (flawless) /Black=0.02 (flawless)} ({Predecessor:} 17. Rd5 Rxd5 18. exd5 Nb4 19. Ne1 Rd8 20. Rd1 Nxa2 21. Nd3 Be7 22. Nxe5 Nb4 23. Nc4 {0-1 (54) Urlau,T-Seidel,M DESC email 2005}) 1/2-1/2

[Event "1st Serbian League 2022"]
[Site "Vrnjacka Banja"]
[Date "2022.09.28"]
[Round "9.34"]
[White "Boskovic, Drasko"]
[Black "Nikolovski, Nikola"]
[Result "1/2-1/2"]
[ECO "A80"]
[WhiteElo "2415"]
[BlackElo "2359"]
[Annotator "TA"]
[PlyCount "109"]
[EventDate "2022.09.20"]
[EventType "team-tourn"]
[EventCountry "SRB"]
[SourceTitle "playchess.com"]
[Source "ChessBase"]
[SourceQuality "1"]
[TimeControl "40/5400+30:1800+30"]

{[%evp 9,109,23,29,27,23,26,28,31,46,10,28,27,42,49,60,55,64,43,48,48,53,40,45,9,47,0,0,7,97,93,104,99,176,143,233,82,152,8,57,0,0,-38,-20,-165,-154,-206,-169,-148,-24,-168,-160,-166,-66,-87,-63,-62,-67,-78,0,0,0,0,5,0,114,0,152,0,31,0,85,12,13,13,246,230,237,187,212,0,0,0,0,0,0,0,0,0,0,0,0,-52,0,0,0,0,0,0,0,0,0,0]} 1. d4 {[%emt 0:00:05]} e6 {[%emt 0:00:35]} 2. Nf3 {[%emt 0:00:58]} f5 {[%emt 0:00:13]} 3. Bf4 {[%emt 0:01:09]} Nf6 {[%emt 0:00:10]} 4. e3 {[%emt 0:00:07]} Be7 {[%emt 0:01:14]} 5. Be2 {[%emt 0:01:13]} O-O {[%emt 0:00:16]} 6. O-O {[%emt 0:00:11] A80: Dutch Defence: Unusual White second moves.} d6 {[%emt 0:08:50]} 7. c4 {[%emt 0:02:08]} Ne4 {[%emt 0:00:39]} 8. h3 {[%emt 0:01:11] White has an edge.} Nd7 {[%emt 0:05:17] [#]} 9. Qb3 $146 {[%emt 0:06:14][%cal Oc4c5]} (9. Nfd2 $5 {[%cal Rd2e4]}) ({Predecessor:} 9. Nc3 Ndf6 10. Rc1 b6 11. Bh2 Bb7 12. b4 Qe8 13. Qb3 Nxc3 14. Rxc3 Ne4 15. Rc2 {0-1 (37) Araujo,J-Macedo,A (1868) Joao Pessoa 2012}) 9... g5 {[%emt 0:10:52]} 10. Bh2 {[%emt 0:00:09]} Ndf6 {[%emt 0:00:31]} (10... g4 11. hxg4 fxg4 12. Nfd2 $16) 11. Nfd2 {[%emt 0:02:54]} Kh8 {[%emt 0:07:44]} 12. Nxe4 {[%emt 0:01:31]} Nxe4 {[%emt 0:03:04]} 13. f3 {[%emt 0:06:41]} Nf6 {[%emt 0:00:27]} 14. Nc3 {[%emt 0:00:06][%cal Bb1c3,Bc3b5,Bb5c7][%mdl 32]} Rg8 {[%emt 0:03:30]} 15. g4 $36 {[%emt 0:21:37][%mdl 2048] White has some pressure.} Qf8 {[%emt 0:14:42]} 16. Nb5 {[%emt 0:05:33]} Bd8 {[%emt 0:01:49]} (16... c6 $5 {[%cal Rc6b5]} 17. Nc3 b6 $14) 17. c5 {[%emt 0:02:25][%cal Rc5d6]} a6 {[%emt 0:01:57]} 18. Qa3 {[%emt 0:04:12][%cal Rc5d6]} Nd5 {[%emt 0:10:42]} (18... f4 $1 $11) 19. cxd6 $16 {[%emt 0:00:52][%cal Rb5c7] White is more active.} f4 {[%emt 0:00:41]} 20. e4 {[%emt 0:07:37]} Ne3 {[%emt 0:01:05]} (20... c6 $16 {was necessary.}) 21. Nxc7 $18 {[%emt 0:00:23]} (21. dxc7 $2 Be7 22. Qa5 Nxf1 23. Kxf1 (23. Rxf1 $2 Bb4 $19) 23... Bb4 $19) 21... Rb8 {[%emt 0:17:39]} (21... Nxf1 $16 {was called for.} 22. Nxa8 (22. Rxf1 Bxc7 23. dxc7 Qxa3 $14) 22... Ne3) 22. e5 $2 {[%emt 0:06:00]} (22. Rfc1 $18) 22... Qh6 $16 {[%emt 0:01:02]} 23. d5 {[%emt 0:00:57]} (23. Rac1 $16) 23... exd5 {[%emt 0:01:11]} (23... Qxh3 $11 24. Rf2 Nxd5) 24. Qc3 {[%emt 0:03:49]} (24. Rac1 $14) 24... Be6 $11 {[%emt 0:01:15]} (24... Qxh3 $2 25. e6+ (25. Rf2 Qh6 $16) 25... Rg7 26. Rf2 $18) (24... d4 $2 25. Qxd4 Bd7 26. h4 $18 (26. e6+ Bf6 $16)) 25. Rf2 {[%emt 0:01:49]} Rc8 {[%emt 0:00:39] ...d4 is the strong threat.} 26. Bf1 {[%emt 0:01:42]} (26. Rc1 $1 $11) 26... Rg7 $19 {[%emt 0:02:22][%cal Rd8c7]} 27. Rc1 {[%emt 0:01:00]} Bxc7 {[%emt 0:01:07]} 28. dxc7 {[%emt 0:00:06]} Rd7 {[%emt 0:00:44]} (28... Rgxc7 $17 29. Qxc7 Rxc7 30. Rxc7 Nxf1 31. Rxf1 Bxg4 $1 32. Rxb7 Qc6 33. Rb8+ Bc8) 29. Bg2 {[%emt 0:05:21]} (29. Qd4 $11) 29... Qg7 {[%emt 0:00:16][%cal Rd7c7]} 30. Qd4 {[%emt 0:01:22]} Qf7 {[%emt 0:00:48]} (30... Rcxc7 $19 31. Rxc7 Rxc7) 31. Re1 {[%emt 0:00:31]} Rcxc7 {[%emt 0:02:30] Hoping for ...Nc2.} 32. Rxe3 {[%emt 0:00:07]} fxe3 {[%emt 0:00:04]} 33. Qxe3 {[%emt 0:00:06]} d4 {[%emt 0:02:00]} (33... Qe7 $17 {Strongly threatening ...d4.} 34. Bg3 d4) 34. Qxg5 $11 {[%emt 0:00:04]} d3 {[%emt 0:00:03]} (34... Bxa2 $2 35. e6 Qg8 36. Qxg8+ (36. exd7 $2 Qxg5 37. Be5+ Kg8 $19) 36... Kxg8 37. exd7 $18) 35. Bf4 {[%emt 0:00:07]} Rc2 {[%emt 0:01:14]} (35... Bxa2 $2 36. e6 Qg6 37. exd7 $18) 36. Bd2 {[%emt 0:00:40] Black must now prevent f4.} Qe7 {[%emt 0:00:39]} (36... Rxb2 37. f4 Qe7 38. Qxe7 (38. f5 Qxg5 39. Bxg5 Rxf2 $15) 38... Rxe7 39. f5 Bxa2 40. e6 $14) (36... Bxa2 $11 {keeps the balance.} 37. Qe3 Kg8) 37. Qh6 {[%emt 0:00:47]} (37. Qe3 $16) 37... Bd5 $2 {[%emt 0:00:36]} (37... Bxa2 $11 38. Qe3 Qc5 39. Qxc5 Rxc5) 38. Bg5 $2 {[%emt 0:00:13]} (38. Qe3 $1 $16) 38... Qf7 {[%emt 0:00:22]} (38... Qc5 $5 {[%cal Rc5f2]} 39. Be3 Qe7 $11) 39. Bd2 {[%emt 0:01:33]} Kg8 {[%emt 0:00:28] [#]} (39... Rxb2 40. f4 Qe6 41. Qf8+ Qg8 42. Qf6+ Rg7 43. e6 Rxd2 44. Rxd2 Qxe6 45. Qxe6 (45. Qd8+ Rg8 $11) 45... Bxe6 46. Rxd3 $16) (39... Qe7 $1 $11 {remains equal.}) 40. f4 {[%emt 0:00:17]} (40. b4 $1 $16) 40... Qg6 $1 {[%emt 0:00:37]} (40... Rxb2 $2 41. f5 Rxd2 42. Qxd2 $18) 41. Qh4 {[%emt 0:33:59]} Bxg2 $2 {[%emt 0:05:00] [#]} (41... Rxb2 $2 42. f5 Qb6 43. e6 Rxd2 44. Qg5+ Rg7 45. Qxd2 Bxg2 46. Kxg2 $18) (41... Qe6 $1 $11 {and Black has nothing to worry.}) 42. f5 $1 $18 {[%emt 0:00:00]} Qe8 {[%emt 0:17:17][%cal Oe8e5]} 43. e6 {[%emt 0:00:00][%cal Be5e6,Be6d7][%mdl 32] Dancing on a razor blade.} Bc6 {[%emt 0:02:22]} 44. exd7 $2 {[%emt 0:00:00]} (44. Qg5+ $18 Rg7 45. Qh6 Rxb2 46. f6) 44... Rc1+ $1 $11 {[%emt 0:00:30][%mdl 64] Decoy} 45. Bxc1 {[%emt 0:00:00]} Qe1+ {[%emt 0:00:05]} 46. Kh2 {[%emt 0:00:00]} Qh1+ {[%emt 0:00:08]} 47. Kg3 {[%emt 0:00:00]} Qg1+ {[%emt 0:00:08]} 48. Kf4 {[%emt 0:00:00]} Qxc1+ {[%emt 0:00:16][%mdl 4096] Endgame KQR-KQB} 49. Ke5 {[%emt 0:00:00]} Qc5+ {[%emt 0:05:04]} 50. Kf6 {[%emt 0:00:00]} ({White should try} 50. Kf4 $11 Qd4+ 51. Kg5 Bxd7 52. Qg3 (52. Kh6 $2 {gets mated.} Qg7+ 53. Kh5 Be8#) 52... Qg7+ 53. Kf4 Qd4+ 54. Kg5 Qg7+ 55. Kf4 Qd4+ 56. Kg5) 50... Qd4+ {[%emt 0:00:19]} ({Black should play} 50... Qd6+ $1 $15 51. Kg5 d2 52. Rxd2 (52. Rf1 d1=Q $15) 52... Qxd2+ 53. Kh5 Qxd7 54. Qg5+ Qg7) 51. Kg5 {[%emt 0:00:00] aiming for f6. The position is equal.} Qg7+ {[%emt 0:02:42]} (51... d2 $2 52. Kh5 (52. Rf1 Qxd7 53. f6 d1=Q $11) 52... Qxd7 53. Qg5+ Qg7 54. Rxd2 $18) 52. Kh5 {[%emt 0:00:00]} Qf7+ {[%emt 0:00:35]} 53. Kg5 {[%emt 0:00:00]} Qg7+ {[%emt 0:00:06]} 54. Kh5 {[%emt 0:00:00]} Qf7+ {[%emt 0:00:06]} 55. Kg5 {[%emt 0:00:00] Weighted Error Value: White=0.38/Black=0.36} 1/2-1/2

[Event "1st Serbian League 2022"]
[Site "Vrnjacka Banja"]
[Date "2022.09.28"]
[Round "9.35"]
[White "Milenkovic, Mladen"]
[Black "Munizaba, Slobodan"]
[Result "0-1"]
[ECO "B87"]
[WhiteElo "2379"]
[BlackElo "2416"]
[Annotator "TA"]
[PlyCount "94"]
[EventDate "2022.09.20"]
[EventType "team-tourn"]
[EventCountry "SRB"]
[SourceTitle "playchess.com"]
[Source "ChessBase"]
[SourceQuality "1"]
[TimeControl "40/5400+30:1800+30"]

{[%evp 18,93,0,-16,-23,-17,0,-20,-27,-60,-52,-79,-23,-70,-39,-288,-285,-265,-247,-265,-257,-310,-308,-324,-304,-331,-333,-320,-316,-351,-311,-787,-788,-770,-779,-776,-776,-776,-769,-748,-657,-659,-563,-1010,-979,-1137,-925,-1066,-1025,-1260,-1197,-1161,-1156,-1120,-1081,-5065,-2411,-6195,-5414,-2306,-1989,-29965,-29967,-29981,-29982,-29990,-29991,-29992,-29993,-29995,-29996,-29997,-29998,-29998,-29998,-29998,-29999,-29999]} 1. e4 {[%emt 0:00:06]} c5 {[%emt 0:00:10]} 2. Nf3 {[%emt 0:00:20]} d6 {[%emt 0:00:18]} 3. d4 {[%emt 0:00:07]} cxd4 {[%emt 0:00:06]} 4. Nxd4 {[%emt 0:00:06]} Nf6 {[%emt 0:00:04]} 5. Nc3 {[%emt 0:00:05]} a6 {[%emt 0:00:05]} 6. Bc4 {[%emt 0:00:38]} e6 {[%emt 0:00:07]} 7. Bb3 {[%emt 0:00:48]} b5 {[%emt 0:00:28]} 8. Bg5 {[%emt 0:02:16]} Be7 {[%emt 0:00:34]} 9. Qf3 {[%emt 0:13:30]} Qb6 {[%emt 0:02:53]} 10. O-O-O {[%emt 0:00:52]} Nbd7 {[%emt 0:01:30] B87: Sicilian Scheveningen/Najdorf: 6 Bc4, with early ...b5.} 11. Rhe1 {[%emt 0:15:40]} O-O {[%emt 0:02:05]} 12. Qg3 {[%emt 0:01:28][%cal Ob3d5]} Nc5 $1 {[%emt 0:04:49] The position is equal.} 13. Bh6 {[%emt 0:12:29][%csl Gh6][%cal Rg3g7] [#]} Ne8 {[%emt 0:01:07]} 14. f4 {[%emt 0:21:27] [#]} Qb7 $146 {[%emt 0:24:00]} (14... Bd7 $17 {aiming for ...a5.} 15. e5 a5) ({Predecessor:} 14... Bb7 15. f5 Nxb3+ 16. axb3 Kh8 17. Be3 b4 18. Na4 Qd8 19. Re2 e5 20. Nf3 Nf6 21. Nxe5 Nxe4 {0-1 (35) Roinos,I (2186)-Galopoulos,N (2381) Thessaloniki 2022}) 15. f5 {[%emt 0:05:54]} (15. Kb1 $11 {deserves consideration.}) 15... b4 {[%emt 0:04:54][%cal Bb5b4,Bb4c3,Bc3b2][%mdl 32]} 16. fxe6 $2 {[%emt 0:05:48]} (16. Bd5 $1 $15 exd5 17. Nxd5) 16... Nxb3+ {[%emt 0:08:02]} ({Worse is} 16... fxe6 17. Na4 Kh8 18. Bg5 (18. Nxc5 $2 dxc5 19. Nxe6 Bxe6 $17) 18... Nxe4 19. Rxe4 Bxg5+ 20. Qxg5 $17) 17. axb3 {[%emt 0:00:12][%cal Oh6g7]} bxc3 {[%emt 0:04:18]} 18. Nf5 {[%emt 0:10:59][%cal Rh6g7]} Bf6 {[%emt 0:13:57]} (18... fxe6 19. Nxg7 cxb2+ 20. Kb1 $15) 19. e7 {[%emt 0:01:36] White wants to mate with Bxg7.} cxb2+ {[%emt 0:00:18]} 20. Kb1 {[%emt 0:00:02] Threatening mate with Bxg7.} Bxf5 {[%emt 0:00:19]} 21. exf8=Q+ {[%emt 0:06:37]} Kxf8 {[%emt 0:00:05] Really sharp!} 22. exf5 {[%emt 0:00:00]} gxh6 {[%emt 0:00:48]} 23. Rxd6 {[%emt 0:00:00]} Qb4 {[%emt 0:06:18]} 24. Rxe8+ {[%emt 0:00:58]} (24. Rxf6 Nxf6 25. Kxb2) 24... Rxe8 $19 {[%emt 0:00:07]} 25. Rxf6 {[%emt 0:00:25][%mdl 4096] Endgame KQR-KQR} Re1+ {[%emt 0:00:14]} 26. Kxb2 {[%emt 0:00:16]} Qd4+ {[%emt 0:00:07]} 27. Qc3 {[%emt 0:00:19] [#]} Rb1+ $3 {[%emt 0:00:11][%mdl 576] Deflection} 28. Kxb1 {[%emt 0:00:05]} Qxc3 {[%emt 0:00:06]} 29. Rxa6 {[%emt 0:00:07] KQ-KR} Kg7 {[%emt 0:03:44] ...Qe1+ is the strong threat.} 30. g4 {[%emt 0:01:45]} Qe1+ {[%emt 0:00:51]} 31. Ka2 {[%emt 0:00:19]} Qe2 {[%emt 0:00:26][%csl LRa6,LRc2,LRg4,LRh2]} 32. Rc6 {[%emt 0:00:22]} Qxg4 {[%emt 0:00:22]} 33. Rc5 {[%emt 0:00:52]} Qd4 {[%emt 0:01:03]} 34. Rc4 {[%emt 0:00:28]} Qf2 {[%emt 0:00:18][%csl LRf5,LRh2]} 35. b4 {[%emt 0:00:32]} Qxf5 {[%emt 0:02:16]} 36. Kb3 {[%emt 0:00:28]} Qd5 {[%emt 0:00:32] ( -> ...f5)} 37. Kc3 {[%emt 0:00:02]} f5 {[%emt 0:00:57] And now ...Qe5+ would win.} 38. Rc5 {[%emt 0:00:33]} Qe4 {[%emt 0:01:07] White must now prevent ...f4.} 39. b5 {[%emt 0:00:30]} f4 {[%emt 0:04:41] Black mates.} 40. b6 {[%emt 0:00:12]} f3 {[%emt 0:00:44]} 41. Rb5 {[%emt 0:30:48]} Qc6+ {[%emt 0:44:03]} 42. Kb4 {[%emt 0:00:26]} f2 {[%emt 0:00:44]} 43. b7 {[%emt 0:00:26]} f1=Q {[%emt 0:01:00]} 44. b8=Q {[%emt 0:00:12]} Qb1+ {[%emt 0:00:04]} 45. Ka4 {[%emt 0:00:00]} Qa6+ {[%emt 0:00:00]} 46. Ra5 {[%emt 0:00:00]} Qc4+ {[%emt 0:00:00]} 47. Ka3 {[%emt 0:00:00]} Qba2# {[%emt 0:00:00] White got outplayed after the opening.  Weighted Error Value: White=0.84/Black=0.14 (very precise)} 0-1

[Event "1st Serbian League 2022"]
[Site "Vrnjacka Banja"]
[Date "2022.09.28"]
[Round "9.36"]
[White "Krstic, Petar"]
[Black "Zlatanovic, Boroljub"]
[Result "0-1"]
[ECO "A48"]
[WhiteElo "2290"]
[BlackElo "2313"]
[Annotator "TA"]
[PlyCount "158"]
[EventDate "2022.09.20"]
[EventType "team-tourn"]
[EventCountry "SRB"]
[SourceTitle "playchess.com"]
[Source "ChessBase"]
[SourceQuality "1"]
[TimeControl "40/5400+30:1800+30"]

{[%evp 14,158,17,16,13,18,13,2,-1,-13,1,0,34,30,70,77,70,84,71,79,103,86,99,95,117,114,137,63,98,88,89,66,89,64,64,45,81,27,83,60,128,116,200,220,189,185,192,197,212,54,114,21,39,34,34,13,5,0,0,0,0,0,0,0,117,-86,-110,-150,-138,-147,-123,-103,-110,-164,-138,-123,0,-220,-208,-212,-164,-208,-186,-296,-370,-341,-335,-335,-339,-331,-325,-309,-309,-309,-300,-307,-297,-292,-191,-195,-184,-633,-632,-632,-627,-665,-641,-6430,-6295,-6108,-5318,-5257,-5257,-5173,-1448,-1375,0,-357,-316,-381,-214,-225,-211,-247,-247,-479,-433,-1808,-1790,-2195,-2216,-29981,-29982,-29983,-29984,-29986,-29987,-29987,-29986,-29986,-29987,-29989,-29984,-29986,-29987,-29987,-29988]} 1. d4 {[%emt 0:00:03]} Nf6 {[%emt 0:00:13]} 2. Nf3 {[%emt 0:00:06]} g6 {[%emt 0:00:07]} 3. Bg5 {[%emt 0:00:11]} Bg7 {[%emt 0:00:13]} 4. Nbd2 {[%emt 0:00:07]} d6 {[%emt 0:00:40]} 5. e4 {[%emt 0:01:39]} O-O {[%emt 0:00:38]} 6. c3 {[%emt 0:00:23]} h6 {[%emt 0:00:25]} 7. Bh4 {[%emt 0:00:36]} Qe8 {[%emt 0:01:33]} 8. Bd3 {[%emt 0:05:17]} e5 {[%emt 0:01:38] A48: 1 d4 Nf6 2 Nf3 g6: Torre, London and Colle Systems.} 9. O-O {[%emt 0:01:51]} Nh5 {[%emt 0:03:48]} 10. dxe5 {[%emt 0:07:05]} dxe5 {[%emt 0:00:48] The position is equal.} 11. Re1 {[%emt 0:00:25]} Nd7 {[%emt 0:02:43]} 12. b4 {[%emt 0:01:12]} Bf6 {[%emt 0:04:35]} (12... g5 $5 13. Bg3 $8 Qe7 $11) 13. Bxf6 {[%emt 0:02:40]} Ndxf6 {[%emt 0:00:39]} 14. Nc4 {[%emt 0:01:55]} Nd7 {[%emt 0:01:25] [#]} 15. a4 $146 {[%emt 0:00:47][%cal Ba2a4,Ba4a5,Ba5a6][%mdl 32]} ({Predecessor:} 15. Bf1 Nhf6 16. Qd2 Kg7 17. Qb2 b6 18. a4 Bb7 19. Nfd2 a6 20. f3 Qe7 21. Ne3 {0-1 (43) Delemarre,J (2435)-Williams,L (2270) Breda 1998}) 15... Qe7 {[%emt 0:00:49]} 16. a5 {[%emt 0:04:03]} Re8 {[%emt 0:02:48]} 17. Qc2 {[%emt 0:02:40]} Qf6 {[%emt 0:04:10]} 18. Ne3 {[%emt 0:06:13]} Nf4 {[%emt 0:04:32]} 19. Bf1 {[%emt 0:14:26]} Nf8 {[%emt 0:03:50]} 20. Rad1 {[%emt 0:02:13]} (20. h4 $16) 20... Be6 {[%emt 0:04:14]} 21. a6 {[%emt 0:05:12]} b6 {[%emt 0:05:31]} 22. c4 {[%emt 0:02:31][%cal Bc3c4,Bc4c5][%mdl 32]} Rac8 {[%emt 0:13:40][%cal Of4h3]} 23. c5 {[%emt 0:12:36]} Nh7 {[%emt 0:11:00][%cal Of4h3]} 24. Rd2 {[%emt 0:02:12]} (24. Bb5 {feels hotter.} Nxg2 25. Nxg2 Qxf3 26. Rd3) 24... h5 {[%emt 0:02:36]} 25. Kh1 {[%emt 0:04:26]} (25. Qc3 $16) 25... Bg4 {[%emt 0:03:42]} (25... g5 $11 {remains equal.}) 26. Ng1 $1 $16 {[%emt 0:01:15]} Rcd8 {[%emt 0:03:49]} ({Black should play} 26... Ng5 $1 $14) 27. Rxd8 {[%emt 0:02:42]} Rxd8 {[%emt 0:01:28]} (27... Qxd8 $16 28. f3 Bd7) 28. f3 $18 {[%emt 0:00:29]} Bd7 {[%emt 0:04:13]} 29. g3 {[%emt 0:00:18]} Ne6 {[%emt 0:00:36]} 30. Nd5 {[%emt 0:04:14]} Qg5 {[%emt 0:05:21]} 31. Qf2 {[%emt 0:01:05]} ({White must play} 31. c6 $1 $18 {[%cal Rc6d7]}) 31... bxc5 {[%emt 0:01:07]} (31... Re8 $14) 32. bxc5 {[%emt 0:00:51]} (32. f4 $16 Qh6 33. Nf3) 32... c6 $11 {[%emt 0:01:12]} 33. h4 {[%emt 0:01:06]} Qh6 {[%emt 0:00:13]} 34. Ne3 {[%emt 0:01:02][%cal Bd5e3,Be3c4,Bc4e5][%mdl 32]} ({Of course not} 34. Ne7+ Kh8 35. Nd5 Qf8 $11) (34. Nb6 $5 {[%cal Rb6c4]}) 34... Bc8 {[%emt 0:02:33]} (34... Nxc5 35. Nc4 Qf8 36. Rd1 $16) 35. Nc4 {[%emt 0:09:22]} Bxa6 {[%emt 0:00:45]} 36. Nxe5 {[%emt 0:00:24]} Rd2 {[%emt 0:00:37]} 37. Be2 {[%emt 0:00:34]} Nd4 {[%emt 0:04:56] ...Nf6 is the strong threat.} 38. f4 $1 {[%emt 0:01:22]} Bxe2 {[%emt 0:01:37]} (38... Nxe2 $11 39. Qe3 Rb2 40. Nxe2 Bxe2) 39. Nxe2 $2 {[%emt 0:00:19]} (39. Qe3 $1 $16 {[%cal Re3d2] is necessary to keep the advantage.} Rc2 40. Qxd4 (40. Nxe2 Nxe2 41. Rxe2 Rxe2 $11)) 39... Qf8 $1 $17 {[%emt 0:00:22]} 40. Qe3 {[%emt 0:02:29]} Rxe2 {[%emt 0:00:23]} 41. Rxe2 {[%emt 0:30:09]} Nxe2 {[%emt 0:30:05]} 42. Qxe2 {[%emt 0:00:10]} Qxc5 {[%emt 0:00:10][%mdl 4096] Endgame KQN-KQN} 43. Qa2 {[%emt 0:02:44]} (43. Qd2 $17) 43... Qe7 $19 {[%emt 0:00:40]} 44. Qc4 {[%emt 0:00:00] [#]} c5 {[%emt 0:00:00]} ({Black should try} 44... Nf6 $1 $17 {And now ...a5 would win.} 45. Kg2 c5) 45. Kg2 $2 {[%emt 0:00:00]} (45. Nxg6 $1 $11 {and White is okay.} Qd7 46. Kg2) 45... Nf6 {[%emt 0:00:00]} 46. Kf3 {[%emt 0:00:00]} Kg7 {[%emt 0:00:00]} 47. Nd3 {[%emt 0:00:00]} Qd7 {[%emt 0:00:00]} 48. Nxc5 {[%emt 0:00:00]} (48. Nf2 {might work better.}) 48... Qd1+ {[%emt 0:00:00]} ({Inferior is} 48... Qh3 49. Qc1 $15) 49. Qe2 {[%emt 0:00:00]} Qh1+ {[%emt 0:00:00]} 50. Qg2 {[%emt 0:00:00]} Qc1 {[%emt 0:00:00]} 51. Nd3 {[%emt 0:00:00]} Qd1+ {[%emt 0:00:00]} 52. Ke3 {[%emt 0:00:01]} Ng4+ {[%emt 0:00:00]} 53. Kd4 {[%emt 0:00:12]} Qa4+ {[%emt 0:00:00]} 54. Kc3 {[%emt 0:02:46]} Nf6 {[%emt 0:00:00]} ({But not} 54... Ne3 $2 55. Qf3 Qa5+ 56. Kd4 Qb6+ 57. Kc3 $19) 55. Nc5 {[%emt 0:00:55]} Qa3+ {[%emt 0:00:00]} 56. Kc4 {[%emt 0:02:23]} a5 {[%emt 0:00:00][%cal Ba7a5,Ba5a4][%mdl 32] aiming for ...Qb4+.} 57. Kb5 {[%emt 0:00:03]} (57. Qg1) 57... Qb4+ {[%emt 0:00:00]} 58. Kc6 {[%emt 0:00:05]} a4 {[%emt 0:00:00] Strongly threatening ...a3.} 59. e5 {[%emt 0:00:28]} Ng8 {[%emt 0:00:00] White must now prevent ...Ne7+.} 60. e6 {[%emt 0:00:16]} Ne7+ {[%emt 0:00:00]} 61. Kd6 {[%emt 0:00:13]} Qb6+ {[%emt 0:02:33]} 62. Kxe7 {[%emt 0:00:06]} Qxc5+ {[%emt 0:00:04] KQ-KQ} 63. Kd7 {[%emt 0:00:16]} Qd4+ {[%emt 0:02:43]} (63... Qb5+ $142 64. Ke7 a3) 64. Ke8 {[%emt 0:00:17] [#]} fxe6 $2 {[%emt 0:00:45]} ({Better is} 64... Qc4 $1 $19 {[%cal Rc4c8]} 65. Qb2+ Kg8) 65. Qa8 $2 {[%emt 0:00:37][%mdl 8192]} (65. Qb7+ $1 $11 {and White has nothing to worry.} Kh6 66. Qa6) 65... Kf6 {[%emt 0:00:47]} 66. Qa5 {[%emt 0:00:45][%cal Og3g4]} e5 {[%emt 0:01:26]} (66... Qd6 $142 {[%csl Gf6][%cal Rd6e7]} 67. Qg5+ Kg7) 67. Qa6+ {[%emt 0:00:30]} Kf5 {[%emt 0:00:45]} 68. Qc8+ {[%emt 0:01:34]} Ke4 {[%emt 0:00:16]} 69. Qc2+ $2 {[%emt 0:00:23]} (69. Qc6+ Ke3 70. fxe5 Qxe5+ 71. Kf8) 69... Kf3 {[%emt 0:00:18]} 70. Qxg6 {[%emt 0:01:21]} (70. f5 $142 gxf5 71. Qxf5+ Kxg3 72. Qxh5) 70... e4 {[%emt 0:00:58][%cal Be5e4,Be4e3,Be3e2][%mdl 32]} 71. f5 {[%emt 0:00:50]} e3 {[%emt 0:00:20] ( -> ...e2)} 72. Qc6+ {[%emt 0:00:26]} Kf2 {[%emt 0:01:21] Black mates.} 73. Qh1 {[%emt 0:00:34]} Qe5+ {[%emt 0:01:13]} 74. Kd8 {[%emt 0:00:07]} e2 {[%emt 0:01:21]} 75. Qh2+ {[%emt 0:00:07]} Kf3 {[%emt 0:00:56]} 76. Qh1+ {[%emt 0:00:07]} Kg4 {[%emt 0:00:44]} 77. Qe1 {[%emt 0:00:37]} Qd5+ {[%emt 0:00:20]} 78. Ke7 {[%emt 0:00:08]} Qd1 {[%emt 0:00:26]} 79. Qb4+ {[%emt 0:00:12]} Kh3 {[%emt 0:00:09] Black used his chance.  Weighted Error Value: White=0.49/Black=0.20 (precise)} 0-1